[Event "FRA-ch Youth U12 2019"]
[Site "Hyeres"]
[Date "2019.04.17"]
[Round "5.1"]
[White "Maurizzi, Marc Andria"]
[Black "Mekhane, Adam"]
[Result "1-0"]
[ECO "B31"]
[WhiteElo "2276"]
[BlackElo "1995"]
[Annotator "NA RC"]
[PlyCount "125"]
[EventDate "2019.04.14"]
[EventType "swiss"]
[EventCountry "FRA"]
[SourceTitle "playchess.com"]
[Source "ChessBase"]
[SourceQuality "1"]
[TimeControl "5400+30"]

1. e4 {[%emt 0:00:00]} c5 {[%emt 0:00:00]} 2. Nf3 {[%emt 0:00:00]} Nc6 {[%emt 0:00:00]} 3. Nc3 {[%emt 0:00:00]} g6 {[%emt 0:04:08]} 4. Bb5 {[%emt 0:00:27]} Bg7 {[%emt 0:01:37]} 5. O-O {[%emt 0:00:15]} Nd4 {[%emt 0:03:46]} 6. Ba4 {[%emt 0:00:03]} a6 {[%emt 0:03:49] B31: Sicilian: 2...Nc6 3 Bb5 g6} 7. Nxd4 {[%emt 0:00:05]} cxd4 {[%emt 1:20:10]} 8. Ne2 {[%emt 0:00:01]} b5 {[%emt 0:00:30]} 9. Bb3 {[%emt 0:00:30]} d3 $146 {[%emt 0:00:30]} ({You set blue moves yourself with the critical opening position annotation.:} 9... Bb7 10. d3 d5 11. f3 e6 12. Qe1 Ne7 13. Qh4 dxe4 14. fxe4 {1-0 (36) Karjakin,S (2760)-Soumya,S (2423) Douglas 2018}) 10. cxd3 {[%emt 0:00:30]} Bb7 {[%emt 0:00:30]} 11. f4 {[%emt 0:00:30]} e6 {[%emt 0:00:30]} 12. Ng3 {[%emt 0:00:30]} Ne7 {[%emt 0:00:30]} 13. d4 {[%emt 0:00:30]} Bxd4+ {[%emt 0:00:30]} 14. Kh1 {[%emt 0:00:30]} d5 {[%emt 0:00:30]} 15. e5 {[%emt 0:00:30]} Nf5 {[%emt 0:00:30]} 16. Ne2 {[%emt 0:00:30]} Bb6 {[%emt 0:00:30]} 17. d4 {[%emt 0:00:30]} h5 {[%emt 0:00:30]} 18. Bc2 {[%emt 0:00:30]} h4 {[%emt 0:00:30]} 19. Bxf5 {[%emt 0:05:31]} gxf5 {[%emt 0:00:00]} 20. a4 {[%emt 1:33:39]} b4 {[%emt 0:52:23]} 21. a5 {[%emt 0:00:00]} Ba7 {[%emt 0:00:00]} 22. Bd2 {[%emt 0:00:00]} Bc6 {[%emt 0:00:00]} 23. Bxb4 {[%emt 0:00:00]} Rb8 {[%emt 0:00:00]} 24. Bc3 {[%emt 0:00:00]} Bb5 {[%emt 0:00:00]} 25. h3 {[%emt 0:00:00]} Rg8 {[%emt 0:00:00]} 26. Rf2 {[%emt 0:00:00]} Rc8 {[%emt 0:00:00]} 27. Ng1 {[%emt 0:00:00]} Rh8 {[%emt 0:00:00]} 28. Nf3 {[%emt 0:00:00]} Rc4 {[%emt 0:00:25]} 29. Qe1 {[%emt 0:00:00]} Kd7 {[%emt 0:02:34]} 30. Rd2 {[%emt 0:00:00]} Qe7 {[%emt 0:00:48]} 31. Rdd1 {[%emt 0:00:00]} Qd8 {[%emt 0:01:44]} 32. Ng5 {[%emt 0:00:00]} Ke8 {[%emt 0:00:37]} 33. Nf3 {[%emt 0:00:00]} Kd7 {[%emt 0:00:17]} 34. Rdc1 {[%emt 0:00:00]} Ke8 {[%emt 0:01:11]} 35. Qd2 {[%emt 0:07:30]} Kd7 {[%emt 0:02:10]} 36. b3 {[%emt 0:00:00]} Rc6 {[%emt 0:02:40]} 37. Bb4 {[%emt 0:00:00]} Qg8 {[%emt 0:00:42]} 38. Ba3 {[%emt 0:01:30]} Qd8 {[%emt 0:01:44]} 39. Qb4 {[%emt 0:00:30]} Kc7 {[%emt 0:00:30]} 40. Rxc6+ {[%emt 0:00:00]} Kxc6 {[%emt 0:02:44]} 41. Rc1+ {[%emt 0:00:00]} Kb7 {[%emt 0:01:04]} 42. Qc3 {[%emt 0:00:00]} Qd7 {[%emt 0:00:41]} 43. Bd6 {[%emt 0:00:00]} Rc8 {[%emt 0:01:40]} 44. Qxc8+ {[%emt 0:03:00]} Qxc8 {[%emt 0:00:00]} 45. Rxc8 {[%emt 0:00:00]} Kxc8 {[%emt 0:00:30]} 46. Bc5 {[%emt 0:00:00]} Bxc5 {[%emt 0:01:19]} 47. dxc5 {[%emt 0:00:00]} Bd3 {[%emt 0:00:33]} 48. Nd4 {[%emt 0:02:00]} Kc7 {[%emt 0:00:30]} 49. g3 {[%emt 0:00:00]} hxg3 {[%emt 0:01:00]} 50. Kg2 {[%emt 0:01:00]} Bb5 {[%emt 0:00:15]} 51. Nxb5+ {[%emt 0:00:00]} axb5 {[%emt 0:00:01]} 52. b4 {[%emt 0:00:00]} d4 {[%emt 0:01:02]} 53. Kxg3 {[%emt 0:01:30]} Kc6 54. a6 {[%emt 0:00:00]} Kc7 {[%emt 0:00:14]} 55. h4 {[%emt 0:00:00]} Kc6 {[%emt 0:00:03]} 56. h5 {[%emt 0:00:00]} d3 {[%emt 0:00:01]} 57. Kf3 {[%emt 0:00:00]} d2 {[%emt 0:00:07]} 58. Ke2 {[%emt 0:00:00]} d1=Q+ {[%emt 0:00:05]} 59. Kxd1 {[%emt 0:00:00]} f6 {[%emt 0:00:04]} 60. h6 {[%emt 0:00:00]} fxe5 {[%emt 0:00:03]} 61. h7 {[%emt 0:00:00]} exf4 {[%emt 0:00:04]} 62. h8=Q {[%emt 0:00:00]} f3 {[%emt 0:00:04]} 63. a7 {[%emt 0:00:00]} 1-0

[Event "FRA-ch Youth U12 2019"]
[Site "Hyeres"]
[Date "2019.04.17"]
[Round "5.3"]
[White "Ider, Bayar"]
[Black "Kuhn, Clement"]
[Result "1-0"]
[ECO "E60"]
[WhiteElo "1609"]
[BlackElo "1936"]
[Annotator "NA RC"]
[PlyCount "100"]
[EventDate "2019.04.14"]
[EventType "swiss"]
[EventCountry "FRA"]
[SourceTitle "playchess.com"]
[Source "ChessBase"]
[SourceQuality "1"]
[TimeControl "5400+30"]

1. d4 {[%emt 0:00:00]} Nf6 {[%emt 0:00:00]} 2. Nf3 {[%emt 0:00:01]} g6 {[%emt 0:00:00]} 3. e3 {[%emt 0:00:08]} Bg7 {[%emt 0:00:00]} 4. b4 {[%emt 0:00:10]} O-O {[%emt 0:00:33]} 5. Bb2 {[%emt 0:00:11]} d6 {[%emt 0:00:59]} 6. Be2 {[%emt 0:00:12]} Nbd7 {[%emt 0:00:24]} 7. c4 {[%emt 0:00:21]} a6 {[%emt 0:01:07]} 8. a4 {[%emt 0:00:31]} b6 {[%emt 0:01:58]} 9. Nc3 {[%emt 0:00:29]} Bb7 {[%emt 0:00:06]} 10. Qc2 {[%emt 0:00:38]} e5 {[%emt 0:02:19]} 11. O-O {[%emt 0:04:19]} Qe7 {[%emt 0:02:17]} 12. a5 {[%emt 0:03:00]} Ne8 {[%emt 0:06:16]} 13. Nd5 {[%emt 0:02:16]} Qd8 {[%emt 0:06:01]} 14. Rfd1 {[%emt 0:02:08]} Bxd5 {[%emt 0:05:35]} 15. cxd5 {[%emt 0:00:13]} b5 {[%emt 0:00:20]} 16. Rac1 {[%emt 0:01:28]} f5 {[%emt 0:06:54]} 17. dxe5 {[%emt 0:04:15]} dxe5 {[%emt 0:01:13]} 18. h4 {[%emt 0:00:55]} h6 {[%emt 0:02:29]} 19. Qb3 {[%emt 0:03:16]} Nd6 {[%emt 0:07:18]} 20. Rc6 {[%emt 0:01:13]} g5 {[%emt 0:03:47]} 21. hxg5 {[%emt 0:01:54]} hxg5 {[%emt 0:00:09]} 22. Rdc1 {[%emt 0:01:24]} g4 {[%emt 0:00:13]} 23. Ne1 {[%emt 0:00:32]} Ra7 {[%emt 0:07:09]} 24. Qc2 {[%emt 0:08:40]} g3 {[%emt 0:02:34]} 25. Nf3 {[%emt 0:12:43]} Bh6 {[%emt 0:07:30]} 26. Rxc7 {[%emt 0:05:19]} gxf2+ {[%emt 0:00:13]} 27. Kxf2 {[%emt 0:01:23]} Rxc7 {[%emt 0:04:56]} 28. Qxc7 {[%emt 0:00:13]} Bxe3+ {[%emt 0:00:10]} 29. Kxe3 {[%emt 0:46:38]} Nc4+ {[%emt 0:00:06]} 30. Rxc4 {[%emt 0:00:00]} bxc4 {[%emt 0:00:47]} 31. Qxd8 {[%emt 0:00:00]} Rxd8 {[%emt 0:00:09]} 32. Bxc4 {[%emt 0:00:00]} Rb8 {[%emt 0:06:08]} 33. Nxe5 {[%emt 0:00:00]} Rxb4 {[%emt 0:06:58]} 34. d6+ {[%emt 0:00:00]} Kh7 {[%emt 0:01:19]} 35. Nxd7 {[%emt 0:00:00]} Rxb2 {[%emt 0:00:30]} 36. Nb6 {[%emt 0:00:00]} f4+ {[%emt 0:00:39]} 37. Kd4 {[%emt 0:00:00]} Rd2+ {[%emt 0:00:52]} 38. Bd3+ {[%emt 0:00:00]} Kg7 {[%emt 0:00:26]} 39. d7 {[%emt 0:00:00]} Rxg2 {[%emt 0:00:05]} 40. d8=Q {[%emt 0:00:00]} f3 {[%emt 0:00:14]} 41. Qd7+ {[%emt 0:00:00]} Kh6 {[%emt 0:00:21]} 42. Qh3+ {[%emt 0:00:00]} Kg7 {[%emt 0:00:04]} 43. Qxf3 {[%emt 0:00:00]} Rg5 {[%emt 0:00:07]} 44. Qb7+ {[%emt 0:00:00]} Kf6 {[%emt 0:00:16]} 45. Nd5+ {[%emt 0:00:00]} Rxd5+ {[%emt 0:00:21]} 46. Qxd5 {[%emt 0:00:00]} Kg7 {[%emt 0:00:04]} 47. Ke5 {[%emt 0:00:00]} Kh8 {[%emt 0:00:07]} 48. Qe4 {[%emt 0:00:00]} Kg7 {[%emt 0:00:05]} 49. Qh7+ {[%emt 0:00:00]} Kf8 {[%emt 0:00:10]} 50. Kd5 {[%emt 0:10:30]} Ke8 {[%emt 0:22:42]} 1-0

[Event "FRA-ch Youth U12 2019"]
[Site "Hyeres"]
[Date "2019.04.17"]
[Round "5.4"]
[White "Fischler, Oscar"]
[Black "Lanz, Remi"]
[Result "1-0"]
[ECO "A08"]
[WhiteElo "1758"]
[BlackElo "1274"]
[Annotator "NA RC"]
[PlyCount "31"]
[EventDate "2019.04.14"]
[EventType "swiss"]
[EventCountry "FRA"]
[SourceTitle "playchess.com"]
[Source "ChessBase"]
[SourceQuality "1"]
[TimeControl "5400+30"]

1. Nf3 {[%emt 0:00:00]} d5 {[%emt 0:00:09]} 2. g3 {[%emt 0:00:00]} c5 {[%emt 0:00:32]} 3. Bg2 {[%emt 0:00:00]} Nc6 {[%emt 0:00:44]} 4. O-O {[%emt 0:00:31]} Bg4 {[%emt 0:02:20]} 5. d3 {[%emt 0:00:53]} Nf6 {[%emt 0:01:07]} 6. Nbd2 {[%emt 0:01:52]} e6 {[%emt 0:00:58]} 7. h3 {[%emt 0:01:01]} Bh5 {[%emt 0:01:58]} 8. g4 {[%emt 0:04:31]} Bg6 {[%emt 0:04:35]} 9. Nh4 {[%emt 0:06:27]} Qc7 {[%emt 0:17:01]} 10. f4 {[%emt 0:31:05]} O-O-O {[%emt 0:29:26]} 11. c4 {[%emt 0:05:47]} Be7 {[%emt 0:24:21]} 12. f5 {[%emt 0:04:34]} exf5 {[%emt 0:05:10]} 13. Nxf5 {[%emt 0:00:45]} Bxf5 {[%emt 0:07:00]} 14. Rxf5 {[%emt 0:00:02]} dxc4 {[%emt 0:00:40]} 15. Nxc4 {[%emt 0:01:01]} Nd4 {[%emt 0:00:49]} 16. Rf2 {[%emt 0:00:45]} 1-0

[Event "FRA-ch Youth U12 2019"]
[Site "Hyeres"]
[Date "2019.04.18"]
[Round "6.1"]
[White "Bat, Bilguun"]
[Black "Maurizzi, Marc Andria"]
[Result "0-1"]
[ECO "E60"]
[WhiteElo "2163"]
[BlackElo "2276"]
[Annotator "NA"]
[PlyCount "80"]
[EventDate "2019.04.14"]
[EventType "swiss"]
[EventCountry "FRA"]
[SourceTitle "playchess.com"]
[Source "ChessBase"]
[SourceQuality "1"]
[TimeControl "5400+30"]

1. d4 {[%emt 0:00:00]} Nf6 {[%emt 0:00:00]} 2. Nf3 {[%emt 0:00:00]} g6 {[%emt 0:00:05]} 3. g3 {[%emt 0:00:14]} Bg7 {[%emt 0:00:20]} 4. Bg2 {[%emt 0:00:06]} O-O {[%emt 0:00:13]} 5. O-O {[%emt 0:00:04]} d6 {[%emt 0:05:15]} 6. b3 {[%emt 0:00:07]} Nbd7 {[%emt 0:08:10]} 7. Bb2 {[%emt 0:00:41]} c6 {[%emt 0:00:56]} 8. c4 {[%emt 0:05:11]} Qc7 {[%emt 0:00:55]} 9. Nc3 {[%emt 0:07:24]} e5 {[%emt 0:02:31]} 10. Qc2 {[%emt 0:01:20]} Re8 {[%emt 0:06:29]} 11. e4 {[%emt 0:04:01]} exd4 {[%emt 0:01:10]} 12. Nxd4 {[%emt 0:00:10]} Nc5 {[%emt 0:01:42]} 13. Rad1 {[%emt 0:06:12]} Bd7 {[%emt 0:03:52]} 14. h3 {[%emt 0:03:50]} a5 {[%emt 0:10:02]} 15. a3 {[%emt 0:11:00]} Re7 {[%emt 0:03:42]} 16. Rfe1 {[%emt 0:10:01]} Rae8 {[%emt 0:03:16]} 17. b4 {[%emt 0:02:21]} axb4 {[%emt 0:00:14]} 18. axb4 {[%emt 0:00:02]} Na6 {[%emt 0:02:16]} 19. Ba3 {[%emt 0:03:44]} Qc8 {[%emt 0:17:45]} 20. Kh2 {[%emt 0:08:27]} Re5 {[%emt 0:00:50]} 21. Nde2 {[%emt 0:04:24]} Rh5 {[%emt 0:02:31]} 22. Nf4 {[%emt 0:01:09]} Rh6 {[%emt 0:00:18]} 23. b5 {[%emt 0:13:14]} Nc5 {[%emt 0:14:14]} 24. Bxc5 {[%emt 0:02:14]} dxc5 {[%emt 0:00:01]} 25. bxc6 {[%emt 0:00:44]} bxc6 {[%emt 0:00:07]} 26. Na4 {[%emt 0:01:32]} g5 {[%emt 0:02:32]} 27. Nb6 {[%emt 0:00:16]} Qc7 {[%emt 0:00:05]} 28. Nxd7 {[%emt 0:00:29]} gxf4 {[%emt 0:02:05]} 29. Nxf6+ {[%emt 0:01:23]} Bxf6 {[%emt 0:00:36]} 30. Rd3 {[%emt 0:09:38]} Rg6 {[%emt 0:01:42]} 31. Rf3 {[%emt 0:00:46]} fxg3+ {[%emt 0:00:22]} 32. fxg3 {[%emt 0:00:07]} Be5 {[%emt 0:01:42]} 33. Ree3 {[%emt 0:01:20]} Kh8 {[%emt 0:02:27]} 34. Kh1 {[%emt 0:01:39]} Bxg3 {[%emt 0:00:51]} 35. Rf1 {[%emt 0:01:08]} Be5 {[%emt 0:00:25]} 36. Re2 {[%emt 0:00:47]} Reg8 {[%emt 0:00:59]} 37. Qd3 {[%emt 0:00:42]} f6 {[%emt 0:00:49]} 38. Qb3 {[%emt 0:00:41]} Qd7 {[%emt 0:01:05]} 39. Qd1 {[%emt 0:00:31]} Rxg2 {[%emt 0:01:16]} 40. Qxd7 {[%emt 0:00:49]} Rxe2 {[%emt 0:00:02]} 0-1

[Event "FRA-ch Youth U12 2019"]
[Site "Hyeres"]
[Date "2019.04.18"]
[Round "6.2"]
[White "Ider, Bayar"]
[Black "Fischler, Oscar"]
[Result "0-1"]
[ECO "D23"]
[WhiteElo "1609"]
[BlackElo "1758"]
[Annotator "NA"]
[PlyCount "51"]
[EventDate "2019.04.14"]
[EventType "swiss"]
[EventCountry "FRA"]
[SourceTitle "playchess.com"]
[Source "ChessBase"]
[SourceQuality "1"]
[TimeControl "5400+30"]

1. d4 {[%emt 0:00:00]} d5 {[%emt 0:00:00]} 2. Nf3 {[%emt 0:00:00]} Nf6 {[%emt 0:00:00]} 3. g3 {[%emt 0:00:00]} c5 {[%emt 0:00:00]} 4. c4 {[%emt 0:00:03]} dxc4 {[%emt 0:06:17]} 5. Bg2 {[%emt 0:01:02]} Nc6 {[%emt 0:05:06]} 6. dxc5 {[%emt 0:03:49]} Qa5+ {[%emt 0:05:05]} 7. Bd2 {[%emt 0:05:47]} Qxc5 {[%emt 0:03:33]} 8. O-O {[%emt 0:05:39]} g6 {[%emt 0:02:56]} 9. Nc3 {[%emt 0:04:38]} Bg7 {[%emt 0:07:36]} 10. Qc1 {[%emt 0:04:49]} O-O {[%emt 0:05:28]} 11. Bh6 {[%emt 0:02:42]} a6 {[%emt 0:07:54]} 12. Bxg7 {[%emt 0:02:46]} Kxg7 {[%emt 0:00:08]} 13. Nd2 {[%emt 0:03:29]} b5 {[%emt 0:07:20]} 14. a4 {[%emt 0:01:48]} Bb7 {[%emt 0:00:57]} 15. axb5 {[%emt 0:01:06]} axb5 {[%emt 0:00:15]} 16. Rxa8 {[%emt 0:00:26]} Rxa8 {[%emt 0:03:26]} 17. Nde4 {[%emt 0:01:39]} Nxe4 {[%emt 0:01:27]} 18. Nxe4 {[%emt 0:00:17]} Qb4 {[%emt 0:03:24]} 19. Ng5 {[%emt 0:05:35]} h6 {[%emt 0:01:07]} 20. Nf3 {[%emt 0:03:12]} Ra2 {[%emt 0:01:46]} 21. Qe3 {[%emt 0:07:30]} Qxb2 {[%emt 0:02:15]} 22. Qb6 {[%emt 0:01:06]} Ba8 {[%emt 0:00:47]} 23. Qe3 {[%emt 0:05:45]} Qxe2 {[%emt 0:04:14]} 24. Qc3+ {[%emt 0:03:24]} e5 {[%emt 0:01:30]} 25. Qe1 {[%emt 0:05:50]} Qxe1 {[%emt 0:02:25]} 26. Rxe1 {[%emt 0:00:04]} 0-1

[Event "FRA-ch Youth U12 2019"]
[Site "Hyeres"]
[Date "2019.04.18"]
[Round "6.3"]
[White "Lesueur, Gabriel"]
[Black "Siffert, Arman"]
[Result "1/2-1/2"]
[ECO "B99"]
[WhiteElo "1589"]
[BlackElo "1701"]
[Annotator "NA"]
[PlyCount "54"]
[EventDate "2019.04.14"]
[EventType "swiss"]
[EventCountry "FRA"]
[SourceTitle "playchess.com"]
[Source "ChessBase"]
[SourceQuality "1"]
[TimeControl "5400+30"]

1. e4 {[%emt 0:00:00]} c5 {[%emt 0:00:00]} 2. Nf3 {[%emt 0:00:00]} d6 {[%emt 0:00:00]} 3. d4 {[%emt 0:00:00]} cxd4 {[%emt 0:00:00]} 4. Nxd4 {[%emt 0:00:00]} Nf6 {[%emt 0:00:12]} 5. Nc3 {[%emt 0:00:07]} a6 {[%emt 0:00:17]} 6. Bg5 {[%emt 0:00:36]} e6 {[%emt 0:00:31]} 7. f4 {[%emt 0:00:14]} Nbd7 {[%emt 0:01:00]} 8. Qf3 {[%emt 0:00:16]} Be7 {[%emt 0:00:58]} 9. O-O-O {[%emt 0:00:20]} Qc7 {[%emt 0:01:07]} 10. g4 {[%emt 0:00:18]} b5 {[%emt 0:00:39]} 11. Bxf6 {[%emt 0:04:02]} Nxf6 {[%emt 0:01:03]} 12. g5 {[%emt 0:00:06]} Nd7 {[%emt 0:00:29]} 13. h4 {[%emt 0:00:14]} b4 {[%emt 0:08:29]} 14. Nce2 {[%emt 0:04:55]} Bb7 {[%emt 0:00:53]} 15. Ng3 {[%emt 0:05:06]} Rc8 {[%emt 0:07:41]} 16. Rh2 {[%emt 0:14:47]} d5 {[%emt 0:36:53]} 17. e5 {[%emt 0:09:32]} Nc5 {[%emt 0:00:12]} 18. Nh5 {[%emt 0:07:31]} Bf8 {[%emt 0:12:50]} 19. Bh3 {[%emt 0:07:13]} g6 {[%emt 0:11:16]} 20. Nf6+ {[%emt 0:00:31]} Kd8 {[%emt 0:00:00]} 21. h5 {[%emt 0:06:31]} Qa5 {[%emt 0:01:06]} 22. Kb1 {[%emt 0:02:16]} Na4 {[%emt 0:01:02]} 23. Qb3 {[%emt 0:36:55]} Nc5 {[%emt 0:04:50]} 24. Qe3 {[%emt 0:00:00]} Na4 {[%emt 0:02:19]} 25. Qb3 {[%emt 0:00:00]} Nc5 {[%emt 0:00:11]} 26. Qe3 {[%emt 0:00:00]} Na4 {[%emt 0:00:18]} 27. Qb3 {[%emt 0:00:00]} Nc5 {[%emt 0:00:07]} 1/2-1/2

[Event "FRA-ch Youth U12 2019"]
[Site "Hyeres"]
[Date "2019.04.18"]
[Round "6.4"]
[White "Volkov, Andreiy"]
[Black "Makkar, Rajat"]
[Result "0-1"]
[ECO "C47"]
[WhiteElo "1628"]
[BlackElo "2147"]
[Annotator "NA"]
[PlyCount "50"]
[EventDate "2019.04.14"]
[EventType "swiss"]
[EventCountry "FRA"]
[SourceTitle "playchess.com"]
[Source "ChessBase"]
[SourceQuality "1"]
[TimeControl "5400+30"]

1. e4 {[%emt 0:00:00]} e5 {[%emt 0:00:00]} 2. Nf3 {[%emt 0:00:00]} Nc6 {[%emt 0:00:00]} 3. Nc3 {[%emt 0:00:00]} Nf6 {[%emt 0:01:46]} 4. d4 {[%emt 0:00:00]} exd4 {[%emt 0:01:13]} 5. Nxd4 {[%emt 0:00:00]} Bb4 {[%emt 0:01:26]} 6. Nxc6 {[%emt 0:00:00]} bxc6 {[%emt 0:00:49]} 7. Bd3 {[%emt 0:00:05]} O-O {[%emt 0:02:02]} 8. O-O {[%emt 0:01:25]} Re8 {[%emt 0:00:40]} 9. Qf3 {[%emt 0:04:01]} d5 {[%emt 0:10:51]} 10. exd5 {[%emt 0:00:40]} cxd5 {[%emt 0:11:57]} 11. h3 {[%emt 0:03:05]} Bxc3 {[%emt 0:05:43]} 12. bxc3 {[%emt 0:00:17]} Ne4 {[%emt 0:02:19]} 13. c4 {[%emt 0:08:52]} Bb7 {[%emt 0:04:28]} 14. Re1 {[%emt 0:11:22]} Nc5 {[%emt 0:17:55]} 15. Rxe8+ {[%emt 0:06:39]} Qxe8 {[%emt 0:00:06]} 16. Qe3 {[%emt 0:00:43]} Qc6 {[%emt 0:12:05]} 17. cxd5 {[%emt 0:02:10]} Qxd5 {[%emt 0:01:06]} 18. f3 {[%emt 0:01:11]} Rd8 {[%emt 0:03:40]} 19. Bb2 {[%emt 0:09:57]} Nxd3 {[%emt 0:03:03]} 20. cxd3 {[%emt 0:00:42]} f6 {[%emt 0:01:42]} 21. Qxa7 {[%emt 0:02:12]} Qb5 {[%emt 0:00:43]} 22. Rc1 {[%emt 0:20:14]} Qxb2 {[%emt 0:17:26]} 23. Rxc7 {[%emt 0:01:11]} Qa1+ {[%emt 0:00:00]} 24. Kf2 {[%emt 0:00:04]} Re8 {[%emt 0:00:00]} 25. Kg3 {[%emt 0:00:59]} Qe5+ {[%emt 0:01:30]} 0-1

[Event "FRA-ch Youth U12 2019"]
[Site "Hyeres"]
[Date "2019.04.19"]
[Round "7.1"]
[White "Maurizzi, Marc Andria"]
[Black "Fischler, Oscar"]
[Result "1-0"]
[ECO "C42"]
[WhiteElo "2276"]
[BlackElo "1758"]
[Annotator "NA"]
[PlyCount "43"]
[EventDate "2019.04.14"]
[EventType "swiss"]
[EventCountry "FRA"]
[SourceTitle "playchess.com"]
[Source "ChessBase"]
[SourceQuality "1"]
[TimeControl "5400+30"]

1. e4 {[%emt 0:00:00]} e5 {[%emt 0:00:00]} 2. Nf3 {[%emt 0:00:00]} Nf6 {[%emt 0:00:00]} 3. Nxe5 {[%emt 0:00:28]} d6 {[%emt 0:00:00]} 4. Nf3 {[%emt 0:00:34]} Nxe4 {[%emt 0:00:00]} 5. d4 {[%emt 0:01:02]} d5 {[%emt 0:00:00]} 6. Bd3 {[%emt 0:00:04]} Bf5 {[%emt 0:00:00]} 7. O-O {[%emt 0:00:58]} Be7 {[%emt 0:01:19]} 8. Re1 {[%emt 0:00:57]} O-O {[%emt 0:03:44]} 9. Nbd2 {[%emt 0:04:51]} Nd6 {[%emt 0:01:56]} 10. Nf1 {[%emt 0:00:39]} Nc6 {[%emt 0:03:32]} 11. Ng3 {[%emt 0:03:31]} Bg4 {[%emt 0:04:44]} 12. c3 {[%emt 0:03:55]} g6 {[%emt 0:12:18]} 13. h3 {[%emt 0:02:44]} Be6 {[%emt 0:01:02]} 14. Bh6 {[%emt 0:13:53]} Re8 {[%emt 0:00:53]} 15. Qd2 {[%emt 0:04:42]} Bf6 {[%emt 0:08:53]} 16. Qf4 {[%emt 0:02:58]} Bg7 {[%emt 0:02:22]} 17. Nh5 {[%emt 0:10:32]} Bh8 {[%emt 0:14:33]} 18. Bg5 {[%emt 0:02:15]} f6 {[%emt 0:02:12]} 19. Bxf6 {[%emt 0:02:17]} Qd7 {[%emt 0:00:38]} 20. Bxh8 {[%emt 0:00:33]} Kxh8 {[%emt 0:00:01]} 21. Nf6 {[%emt 0:00:20]} Qf7 {[%emt 0:01:24]} 22. Ng5 {[%emt 0:00:07]} 1-0

[Event "FRA-ch Youth U12 2019"]
[Site "Hyeres"]
[Date "2019.04.19"]
[Round "7.2"]
[White "Siffert, Arman"]
[Black "Bat, Bilguun"]
[Result "1/2-1/2"]
[ECO "B22"]
[WhiteElo "1701"]
[BlackElo "2163"]
[Annotator "NA"]
[PlyCount "123"]
[EventDate "2019.04.14"]
[EventType "swiss"]
[EventCountry "FRA"]
[SourceTitle "playchess.com"]
[Source "ChessBase"]
[SourceQuality "1"]
[TimeControl "5400+30"]

1. e4 {[%emt 0:00:00]} c5 {[%emt 0:00:00]} 2. c3 {[%emt 0:00:00]} d5 {[%emt 0:00:00]} 3. exd5 {[%emt 0:00:00]} Qxd5 {[%emt 0:00:00]} 4. d4 {[%emt 0:00:22]} Nf6 {[%emt 0:00:01]} 5. Nf3 {[%emt 0:00:26]} Bg4 {[%emt 0:00:05]} 6. Be2 {[%emt 0:00:09]} e6 {[%emt 0:00:16]} 7. h3 {[%emt 0:00:30]} Bh5 {[%emt 0:00:18]} 8. O-O {[%emt 0:00:41]} Nc6 {[%emt 0:00:11]} 9. a3 {[%emt 0:00:53]} Be7 {[%emt 0:05:18]} 10. c4 {[%emt 0:00:41]} Qd7 {[%emt 0:04:39]} 11. dxc5 {[%emt 0:00:26]} a5 {[%emt 0:05:11]} 12. Be3 {[%emt 0:01:00]} Qxd1 {[%emt 0:02:50]} 13. Rxd1 {[%emt 0:00:12]} Ne4 {[%emt 0:10:04]} 14. Nc3 {[%emt 0:01:09]} Nxc3 {[%emt 0:03:10]} 15. bxc3 {[%emt 0:00:09]} Bg6 {[%emt 0:02:38]} 16. Nd4 {[%emt 0:02:16]} O-O-O {[%emt 0:15:17]} 17. Nxc6 {[%emt 0:02:47]} bxc6 {[%emt 0:00:19]} 18. Bd4 {[%emt 0:07:38]} Bf6 {[%emt 0:08:25]} 19. f4 {[%emt 0:22:28]} Rxd4 {[%emt 0:11:55]} 20. cxd4 {[%emt 0:23:01]} Rd8 {[%emt 0:00:17]} 21. Kf1 {[%emt 0:00:07]} Bxd4 {[%emt 0:00:46]} 22. Ra2 {[%emt 0:00:17]} Bxc5 {[%emt 0:03:48]} 23. Rxd8+ {[%emt 0:07:46]} Kxd8 {[%emt 0:00:08]} 24. Bf3 {[%emt 0:01:04]} Kc7 {[%emt 0:00:55]} 25. Ke2 {[%emt 0:00:11]} h5 {[%emt 0:02:40]} 26. g3 {[%emt 0:02:24]} Bd4 {[%emt 0:02:39]} 27. h4 {[%emt 0:24:01]} f6 {[%emt 0:03:42]} 28. g4 {[%emt 0:01:50]} hxg4 {[%emt 0:02:10]} 29. Bxg4 {[%emt 0:00:01]} Bf7 {[%emt 0:00:40]} 30. Kd3 {[%emt 0:00:27]} e5 {[%emt 0:06:53]} 31. Rg2 {[%emt 0:00:35]} c5 {[%emt 0:01:33]} 32. Bf3 {[%emt 0:00:45]} f5 {[%emt 0:00:28]} 33. fxe5 {[%emt 0:01:00]} Bxe5 {[%emt 0:00:07]} 34. h5 {[%emt 0:00:46]} Bf6 {[%emt 0:01:17]} 35. Rg1 {[%emt 0:00:14]} Kd6 {[%emt 0:08:50]} 36. Rb1 {[%emt 0:00:33]} Be8 {[%emt 0:00:00]} 37. Rb8 {[%emt 0:00:51]} Bd7 {[%emt 0:00:00]} 38. Ra8 {[%emt 0:00:21]} a4 {[%emt 0:00:00]} 39. Bd1 {[%emt 0:00:12]} f4 {[%emt 0:00:00]} 40. Bxa4 {[%emt 0:00:19]} Bf5+ {[%emt 0:00:00]} 41. Kd2 {[%emt 0:01:21]} Bg4 {[%emt 0:00:00]} 42. Bd1 {[%emt 0:00:09]} f3 {[%emt 0:00:00]} 43. Ke1 {[%emt 0:00:56]} Bh4+ {[%emt 0:00:00]} 44. Kd2 {[%emt 0:00:20]} Bxh5 {[%emt 0:00:00]} 45. Rf8 {[%emt 0:00:35]} Bg5+ {[%emt 0:00:39]} 46. Ke1 {[%emt 0:00:24]} Bf6 {[%emt 0:02:34]} 47. Kf2 {[%emt 0:00:01]} Bd4+ {[%emt 0:01:20]} 48. Kf1 {[%emt 0:00:01]} Bf6 {[%emt 0:00:30]} 49. Kf2 {[%emt 0:00:04]} Ke7 {[%emt 0:00:58]} 50. Rh8 {[%emt 0:02:03]} Bd4+ {[%emt 0:01:29]} 51. Kf1 Bg4 {[%emt 0:00:00]} 52. Rh4 {[%emt 0:00:27]} Be6 {[%emt 0:00:00]} 53. Re4 {[%emt 0:00:44]} Kd6 {[%emt 0:00:05]} 54. Rxe6+ {[%emt 0:00:11]} Kxe6 {[%emt 0:00:20]} 55. Bxf3 {[%emt 0:00:05]} Kf5 {[%emt 0:00:12]} 56. Kg2 {[%emt 0:00:12]} g5 {[%emt 0:00:11]} 57. a4 {[%emt 0:00:06]} g4 {[%emt 0:00:16]} 58. Bd5 {[%emt 0:00:05]} Bc3 {[%emt 0:00:05]} 59. Bg8 {[%emt 0:00:07]} Kf4 {[%emt 0:00:17]} 60. Bd5 {[%emt 0:00:06]} Be1 {[%emt 0:00:22]} 61. Bg8 {[%emt 0:00:07]} Ke5 {[%emt 0:00:22]} 62. Bd5 {[%emt 0:00:06]} 1/2-1/2